bitfinex/quotes_ETHUSD_20240828
["timestamp","ask_amount","ask_price","bid_price","bid_amount"]
[1724876867555,3.94808,2532.9,2532.0,3.94932]
[1724876867761,3.0,2532.8,2531.8,2.4955]
[1724876867942,3.94879,2532.5,2531.9,3.94953]
[1724876868127,3.9484,2532.7,2532.1,3.94926]
[1724876868325,3.0,2532.8,2532.1,3.94926]
[1724876868525,3.0,2532.8,2532.2,3.94912]
[1724876868732,3.94823,2532.8,2532.1,3.94922]
[1724876868951,3.94792,2533.0,2532.3,3.94886]
[1724876869161,3.94761,2533.2,2532.4,3.94873]
[1724876869319,6.94732,2533.4,2532.6,3.94836]
[1724876869519,6.94732,2533.4,2531.8,3.0]
[1724876869520,3.94775,2533.1,2532.7,2.4955]
[1724876869717,6.94732,2533.4,2532.8,0.55]
[1724876869912,3.94774,2533.1,2532.8,0.55]
[1724876870124,3.94784,2533.1,2532.8,0.55]
[1724876870356,3.94795,2533.0,2532.1,2.4955]
[1724876870561,3.94812,2532.9,2532.2,3.94898]
[1724876870794,3.94778,2533.1,2532.3,0.07896621]
[1724876870921,3.94746,2533.3,2532.5,3.94866]
[1724876871116,6.94731,2533.4,2532.7,3.94832]
[1724876871421,6.94731,2533.4,2532.7,3.94823]
[1724876871664,3.94689,2533.7,2532.8,4.02714184]
[1724876871831,3.9473,2533.4,2533.0,2.4627]
[1724876872164,3.94764,2533.2,2532.5,2.4627]
[1724876872459,3.94793,2533.0,2532.5,2.4627]
[1724876872663,7.89593,2533.0,2532.5,2.4627]
[1724876872828,3.94712,2533.5,2532.5,2.4627]
[1724876873032,3.94813,2532.9,2532.5,2.4627]
[1724876873562,3.9478,2533.1,2532.5,2.4627]
[1724876873731,3.0,2533.4,2532.7,3.94829]
[1724876873932,3.0,2533.4,2532.8,4.49809]
[1724876874262,3.94655,2533.9,2532.9,0.07894862]
[1724876874465,3.94584,2534.4,2533.4,3.94723]
[1724876874651,3.94547,2534.6,2533.9,2.4329]
[1724876874964,4.63022301,2536.2,2534.5,3.94543]
[1724876875146,3.94488,2535.0,2534.4,3.9456]
[1724876875359,3.94457,2535.2,2534.5,0.55]
[1724876875519,3.9451,2534.8,2534.5,0.55]
[1724876875723,3.9451,2534.8,2534.3,0.55]
[1724876876158,3.94487,2535.0,2534.3,4.49584]
[1724876876375,3.94518,2534.8,2534.3,0.55]
[1724876876541,3.94472,2535.1,2534.4,4.02449297]
[1724876876739,3.94487,2535.0,2534.5,0.55]
[1724876876947,3.94519,2534.8,2534.5,0.55]
[1724876877160,3.94456,2535.2,2534.5,0.55]
[1724876877466,4.35472875,2535.2,2534.5,4.49545]
[1724876877632,0.41016875,2535.2,2534.8,2.2937]
[1724876877839,0.41016875,2535.2,2534.9,0.55]
[1724876878019,3.94356,2535.8,2535.0,0.07889094]
[1724876878223,3.94356,2535.8,2535.1,0.55]
[1724876878426,3.94385,2535.6,2535.1,0.55]
[1724876878664,0.41015103,2535.7,2535.1,4.39398]
[1724876878963,3.9441,2535.5,2535.2,0.55]
[1724876879127,3.94369,2535.7,2535.2,0.55]
[1724876879321,3.9441,2535.5,2535.2,0.55]
[1724876879526,3.94415,2535.4,2535.2,0.55]
[1724876879886,3.9441,2535.5,2535.2,0.55]
[1724876880171,3.94432,2535.3,2534.8,2.2937]
[1724876880321,6.94426,2535.4,2534.8,2.2937]
[1724876880521,0.84501563,2536.0,2534.8,2.2937]
[1724876880522,3.94387,2535.6,2534.9,3.94482]
[1724876880953,3.94439,2535.3,2534.8,2.2937]
[1724876881155,3.94408,2535.5,2534.8,2.2937]
[1724876881364,3.94373,2535.7,2534.9,0.62888069]
[1724876881566,3.94373,2535.7,2535.1,3.94461]
[1724876881776,0.41012944,2536.0,2535.2,0.62887305]
[1724876882093,0.41012944,2536.0,2535.9,10.26604]
[1724876882378,7.88351,2537.0,2536.1,3.94295]
[1724876882533,3.94173,2537.0,2536.4,3.94247]
[1724876882742,3.94142,2537.2,2536.5,4.49241]
[1724876883000,3.94154,2537.1,2536.5,0.55]
[1724876883133,3.94127,2537.3,2536.5,0.62883193]
[1724876883339,3.94127,2537.3,2536.7,3.94199]
[1724876883582,3.94067,2537.7,2537.1,3.94148]
[1724876883743,3.94067,2537.7,2536.8,3.02112888]
[1724876883744,3.94067,2537.7,2537.2,0.55]
[1724876884074,3.93934,2538.5,2537.6,3.9407]
[1724876884303,3.93934,2538.5,2537.3,0.07881821]
[1724876884304,3.93908,2538.7,2537.8,3.94026]
[1724876884441,3.93919,2538.6,2537.9,0.62879048]
[1724876884636,3.93919,2538.6,2537.9,0.55]
[1724876884939,3.93919,2538.6,2537.9,4.49025]
[1724876884940,3.9392,2538.6,2537.9,4.49025]
[1724876885134,3.93908,2538.7,2537.9,4.49025]
[1724876885135,3.93936,2538.5,2537.9,4.49025]
[1724876885364,3.93936,2538.5,2537.9,0.55]
[1724876885530,3.93908,2538.7,2537.8,4.49038]
[1724876885736,3.93996,2538.1,2537.8,0.55]
[1724876885936,3.94107,2537.4,2536.7,2.4032]
[1724876886139,3.94103,2537.5,2536.8,3.94194]
[1724876886381,3.94104,2537.4,2536.7,6.34531]
[1724876886550,3.94088,2537.5,2536.7,2.4032]
[1724876886754,3.94065,2537.7,2536.8,3.94182]
[1724876886949,3.94028,2537.9,2537.0,3.94153]
[1724876887149,3.0,2537.8,2536.8,4.576442]
[1724876887352,3.94135,2537.2,2536.7,2.4032]
[1724876887774,3.0,2537.8,2536.2,2.3577]
[1724876887954,3.94219,2536.7,2536.2,2.3577]
[1724876888167,3.94209,2536.8,2536.2,2.3577]
[1724876888956,6.94132,2537.3,2536.4,3.94251]
[1724876888957,3.0,2537.3,2536.4,3.94251]
[1724876889177,3.0,2537.6,2536.5,0.07883032]
[1724876889401,3.94062,2537.7,2536.9,3.94169]
[1724876889599,3.94095,2537.5,2537.0,2.334]
[1724876889898,3.94103,2537.5,2537.0,2.334]
[1724876890101,3.94127,2537.3,2537.1,0.55]
[1724876890316,3.94093,2537.5,2536.7,2.3369]
[1724876890607,9.09122565,2538.6,2536.7,2.3369]
[1724876890608,3.94114,2537.4,2536.7,2.3369]
[1724876890766,3.94182,2536.9,2536.1,2.3369]
[1724876890962,3.94147,2537.2,2536.1,2.3369]
[1724876891204,3.94209,2536.8,2536.1,2.3369]
[1724876891408,3.94146,2537.2,2536.1,2.3369]
[1724876891699,3.01958264,2538.6,2537.1,3.94136]
[1724876891857,3.94084,2537.6,2537.0,2.3369]
[1724876892064,3.93998,2538.1,2537.0,6.27852]
[1724876892375,3.94029,2537.9,2537.1,4.02031567]
[1724876892574,3.93967,2538.3,2537.2,0.62881564]
[1724876892776,3.93904,2538.7,2537.2,0.55]
[1724876892777,3.93938,2538.5,2537.2,0.55]
[1724876893010,3.93938,2538.5,2537.9,3.94013]
[1724876893216,3.93725,2539.9,2537.4,6.27793]
[1724876893217,3.93873,2538.9,2538.0,0.62879228]
[1724876893438,3.93841,2539.1,2538.4,3.93947]
[1724876893586,3.93813,2539.3,2538.5,4.48921]
[1724876893792,3.93725,2539.9,2538.5,0.55]
[1724876893793,3.93738,2539.8,2538.5,0.55]
[1724876894138,3.93841,2539.1,2538.5,0.55]
[1724876894426,3.93855,2539.0,2538.5,0.55]
[1724876894930,3.93912,2538.7,2538.5,0.55]
[1724876895231,3.93908,2538.7,2538.5,0.55]
[1724876895443,3.93917,2538.6,2538.5,0.55]
[1724876895605,3.94038,2537.9,2537.4,2.3369]
[1724876895806,3.94001,2538.1,2536.8,2.3369]
[1724876896117,3.0,2538.0,2536.8,2.3369]
[1724876896436,3.94106,2537.4,2536.8,2.3369]
[1724876896638,3.0,2537.3,2536.8,2.3369]
[1724876896936,3.94196,2536.9,2536.0,2.3801]
[1724876897089,3.0,2537.3,2536.4,3.94253]
[1724876897295,3.0,2537.3,2536.5,0.0788325]
[1724876897518,3.0,2537.3,2536.8,3.94196]
[1724876897825,3.94073,2537.6,2536.9,2.50542644]
[1724876897991,3.94001,2538.1,2537.3,3.94108]
[1724876898190,3.94039,2537.9,2537.1,3.94143]
[1724876898422,3.94073,2537.6,2536.9,6.36837]
[1724876898622,3.94036,2537.9,2537.0,3.0]
[1724876898826,2.4389,2538.9,2536.9,2.4266]
[1724876898827,3.94008,2538.1,2537.1,0.62147851]
[1724876899027,3.94042,2537.8,2537.2,0.55]
[1724876899186,3.93874,2538.9,2537.2,0.55]
[1724876899392,3.94001,2538.1,2537.4,3.94103]
[1724876899592,3.93982,2538.2,2537.6,2.3082]
[1724876899839,3.93922,2538.6,2537.7,3.94045]
[1724876900003,3.93899,2538.8,2538.0,3.93998]
[1724876900194,3.93865,2539.0,2538.1,0.55]
[1724876900195,0.41011941,2539.0,2538.1,0.55]
[1724876900397,3.93899,2538.8,2538.1,4.48994]
[1724876900651,0.83388823,2539.3,2538.2,2.3869845]
[1724876900859,3.93948,2538.5,2538.3,0.55]
[1724876901159,0.41010884,2539.4,2538.3,0.55]
[1724876901360,3.93921,2538.6,2538.3,0.55]
[1724876901518,3.93948,2538.4,2537.7,2.4607]
[1724876901720,3.93966,2538.3,2537.7,2.4607]
[1724876902066,3.93911,2538.7,2537.8,0.55]
[1724876902067,3.94006,2538.1,2537.8,0.55]
[1724876902221,3.93968,2538.3,2537.8,0.55]
[1724876902561,3.9394,2538.5,2537.8,0.55]
[1724876902771,3.93877,2538.9,2538.1,3.93982]
[1724876903056,3.93877,2538.9,2538.2,0.55]
[1724876903284,3.93885,2538.9,2538.2,4.48978]
[1724876903446,3.93913,2538.7,2538.2,0.55]
[1724876903647,3.93913,2538.7,2538.1,0.55]
[1724876904085,3.93946,2538.5,2537.7,2.4607]
[1724876904250,3.94029,2537.9,2537.7,2.4607]
[1724876904793,3.93997,2538.1,2537.7,2.4607]
[1724876904945,3.93971,2538.3,2537.7,2.4607]
[1724876905147,3.94024,2538.0,2537.7,2.4607]
[1724876905689,3.93937,2538.5,2537.7,6.40123]
[1724876905984,3.0,2538.6,2537.7,2.4607]
[1724876906197,3.93966,2538.3,2537.7,2.4607]
[1724876906491,0.693903,2538.5,2537.2,2.3078]
[1724876906492,3.94068,2537.7,2537.2,2.3078]
[1724876906643,3.94034,2537.9,2537.2,2.3078]
[1724876906848,0.3693903,2538.4,2537.2,2.3078]
[1724876907046,3.94113,2537.4,2537.2,2.3078]
[1724876907280,3.9414,2537.2,2536.7,2.3015]
[1724876907447,3.94068,2537.7,2536.7,2.3015]
[1724876907640,3.94167,2537.0,2536.7,2.3015]
[1724876907853,0.394046,2537.7,2536.7,2.3015]
[1724876907854,3.94123,2537.3,2536.7,2.3015]
[1724876908056,3.94175,2537.0,2536.7,2.3015]
[1724876908294,3.94175,2537.0,2536.2,6.3224]
[1724876908509,3.94175,2537.0,2536.2,3.01184]
[1724876908719,3.94175,2537.0,2536.4,3.94249]
[1724876908914,3.94183,2536.9,2536.2,10.26524]
[1724876909121,3.94142,2537.2,2536.4,3.94257]
[1724876909519,3.94106,2537.4,2536.6,3.94219]
[1724876909754,3.94074,2537.6,2536.7,0.07882826]
[1724876909900,3.93953,2538.4,2536.9,3.94174]
[1724876910105,3.94069,2537.7,2537.1,3.9414]
[1724876910339,3.94069,2537.7,2537.0,0.07881675]
[1724876910340,3.94069,2537.7,2537.2,0.55]
[1724876910540,3.94069,2537.7,2537.1,0.62882201]
[1724876910744,3.94032,2537.9,2537.2,7.88252]
[1724876911037,3.94032,2537.9,2537.3,0.55]
[1724876911249,3.94095,2537.5,2537.3,0.55]
[1724876911414,3.94062,2537.7,2537.3,0.55]
[1724876911620,6.93996,2538.1,2537.4,0.07881702]
[1724876911821,3.94073,2537.6,2537.5,0.55]
[1724876912152,3.0,2538.1,2537.3,0.55]
[1724876912153,3.94104,2537.4,2537.3,0.55]
[1724876912307,3.94103,2537.5,2537.3,0.55]
[1724876912506,3.94062,2537.7,2537.3,0.55]
[1724876912753,3.94074,2537.6,2537.3,0.55]
[1724876912947,4.63022301,2539.2,2537.5,2.3591]
[1724876913119,1.19611972,2539.4,2538.3,3.9396]
[1724876913321,3.93871,2539.0,2538.4,0.07878429]
[1724876913521,3.9384,2539.1,2538.5,0.55]
[1724876913745,3.9383,2539.2,2538.6,0.07877423]
[1724876914043,4.63022301,2540.4,2538.7,0.55]
[1724876914044,0.41006273,2539.8,2538.7,0.55]
[1724876914252,3.93886,2538.8,2538.7,0.55]
[1724876914420,3.93886,2538.8,2538.5,0.55]
[1724876915108,3.43643512,2539.4,2538.5,0.55]
[1724876915309,3.93904,2538.7,2538.5,0.55]
[1724876915821,3.93917,2538.6,2538.5,0.55]
[1724876916142,3.93915,2538.7,2538.5,0.55]
[1724876916143,7.87829,2538.7,2538.5,0.55]
[1724876916345,3.93914,2538.7,2538.5,0.55]
[1724876916502,3.93917,2538.6,2538.5,0.55]
[1724876916707,3.93914,2538.7,2538.5,0.55]
[1724876916949,3.93917,2538.6,2538.5,0.55]
[1724876917313,3.93756,2539.7,2538.5,0.55]
[1724876917656,3.93884,2538.9,2538.4,0.55]
[1724876917815,3.93935,2538.5,2537.9,6.42728]
[1724876918159,3.94075,2537.6,2537.4,2.3407]
[1724876918526,3.94088,2537.5,2537.4,2.3407]
[1724876918709,3.94088,2537.5,2536.9,6.2824]
[1724876918911,3.94075,2537.6,2536.9,2.3407]
[1724876919110,3.9416,2537.1,2536.5,3.94233]
[1724876919335,3.94105,2537.4,2536.8,3.94196]
[1724876919551,6.94095,2537.5,2536.9,3.9418]
[1724876919754,7.88134,2537.7,2537.0,4.02041869]
[1724876919963,3.94053,2537.8,2537.1,3.94149]
[1724876920272,3.0,2538.0,2536.9,3.9417]
[1724876920273,7.88166,2537.6,2536.9,3.9417]
[1724876920472,3.94082,2537.6,2536.9,3.9417]
[1724876920777,3.94066,2537.7,2537.0,3.94159]
[1724876920936,3.94066,2537.7,2537.0,7.88314]
[1724876921264,3.94073,2537.6,2537.0,3.94155]
[1724876921469,3.94049,2537.8,2537.2,3.94123]
[1724876921670,3.94053,2537.8,2537.3,0.55]
[1724876921840,3.94027,2537.9,2537.3,3.94116]
[1724876922045,3.94027,2537.9,2537.4,0.55]
[1724876922243,3.0,2538.2,2537.4,2.96951558]
[1724876922244,6.93986,2538.2,2537.4,2.96951558]
[1724876922459,6.93986,2538.2,2537.6,3.94072]
[1724876922634,6.93986,2538.2,2537.7,0.55]
[1724876922972,3.94011,2538.0,2537.7,0.55]
[1724876923133,3.94011,2538.0,2537.5,0.55]
[1724876923134,3.94042,2537.8,2537.5,0.55]
[1724876923572,3.94073,2537.6,2537.5,0.55]
[1724876924247,3.94048,2537.8,2537.5,0.55]
[1724876924570,3.94061,2537.7,2537.5,0.55]
[1724876924775,3.94069,2537.7,2537.5,0.55]
[1724876925068,3.93999,2538.1,2537.5,0.55]
[1724876925366,3.93999,2538.1,2537.4,3.94102]
[1724876925576,3.9395,2538.4,2537.8,3.9403]
[1724876925874,3.9395,2538.4,2537.9,0.55]
[1724876926176,0.393837,2539.1,2537.8,0.55]
[1724876926177,3.93942,2538.5,2537.8,0.55]
[1724876926330,3.93988,2538.2,2537.8,0.55]
[1724876926964,3.93965,2538.3,2537.8,0.55]
[1724876927170,3.93957,2538.4,2537.8,0.55]
[1724876927330,3.94026,2537.9,2537.8,0.55]
[1724876927734,3.93983,2538.2,2537.2,2.3439]
[1724876927982,3.94093,2537.5,2536.4,2.3439]
[1724876928283,3.94092,2537.5,2536.4,2.3439]
[1724876928432,3.94267,2536.4,2535.9,2.3439]
[1724876928634,3.94273,2536.4,2535.9,2.3439]
[1724876928862,3.94202,2536.8,2535.9,2.3439]
[1724876928863,3.94279,2536.3,2535.9,2.3439]
[1724876929181,3.94258,2536.5,2535.5,3.94398]
[1724876929470,3.94258,2536.5,2535.4,2.3439]
[1724876929471,3.94289,2536.3,2535.6,3.94374]
[1724876929674,10.88541,2536.4,2535.8,3.94351]
[1724876929879,6.9427,2536.4,2535.7,3.94366]
[1724876930028,6.9427,2536.4,2535.6,3.94374]
[1724876930232,3.942,2536.8,2536.1,3.94296]
[1724876930548,3.0,2536.7,2535.7,3.94358]
[1724876930749,0.41023718,2537.0,2535.4,2.3439]
[1724876930750,3.94322,2536.0,2535.5,3.9439]
[1724876931094,3.94356,2535.8,2535.4,2.3439]
[1724876931236,3.94393,2535.6,2534.9,6.2158]
[1724876931575,6.94264,2536.4,2535.3,3.94427]
[1724876931730,7.88719,2535.8,2535.1,7.88902]
[1724876931933,3.94362,2535.8,2534.9,6.21581]
[1724876932235,3.94359,2535.8,2534.9,6.2158]
[1724876932471,3.694264,2536.4,2535.1,3.94454]
[1724876932674,7.88725,2535.8,2535.1,3.94451]
[1724876932841,3.94414,2535.5,2534.9,6.21585]
[1724876933735,3.94418,2535.4,2534.9,6.2158]
[1724876933935,3.94418,2535.4,2534.9,2.271]
[1724876934580,3.94392,2535.6,2534.9,6.21592]
[1724876934789,3.0,2535.8,2534.6,3.94524]
[1724876934963,3.9438,2535.7,2534.9,3.94479]
[1724876935166,3.0,2535.9,2535.0,0.07888937]
[1724876935366,3.94325,2536.0,2534.7,2.3654]
[1724876935596,3.94298,2536.2,2535.0,3.9447]
[1724876935895,3.94336,2536.0,2535.4,7.88811]
[1724876936099,3.94333,2536.0,2535.5,0.55]
[1724876936271,3.94367,2535.8,2535.5,0.55]
[1724876936599,3.94383,2535.6,2535.5,0.55]
[1724876937096,3.94381,2535.7,2535.5,0.55]
[1724876937260,3.94379,2535.7,2535.5,0.55]
[1724876937655,3.94383,2535.6,2535.5,0.55]
[1724876937859,3.94441,2535.3,2534.7,2.3654]
[1724876938079,3.94441,2535.3,2534.8,0.55]
[1724876938305,3.94413,2535.5,2534.9,3.94492]
[1724876938680,3.94338,2535.9,2535.3,3.94417]
[1724876938874,6.9432,2536.1,2535.4,3.94414]
[1724876939061,3.94271,2536.4,2535.6,6.34165]
[1724876939403,3.94258,2536.5,2536.0,3.94319]
[1724876939557,3.94258,2536.5,2536.1,0.55]
[1724876939755,7.88514,2536.5,2536.1,0.55]
[1724876940001,3.94256,2536.5,2535.9,0.55]
[1724876940294,11.80197718,2537.0,2535.9,0.999339]
[1724876940295,3.94261,2536.4,2535.9,0.999339]
[1724876940604,3.94321,2536.0,2535.3,3.94416]
[1724876940797,3.94218,2536.7,2535.4,4.02288413]
[1724876941106,2.2839,2536.4,2535.3,0.07887668]
[1724876941268,3.94337,2535.9,2535.3,3.94419]
[1724876941461,3.94362,2535.8,2535.1,6.40188]
[1724876941984,3.94362,2535.8,2535.3,3.94429]
[1724876942169,3.94376,2535.7,2535.1,6.40188]
[1724876942380,3.94376,2535.7,2534.1,4.34135]
[1724876942381,0.788738,2535.7,2534.7,2.2582]
[1724876942675,3.94392,2535.6,2535.0,3.94472]
[1724876942856,3.94327,2536.0,2535.0,3.94472]
[1724876942857,3.94329,2536.0,2535.3,3.94429]
[1724876943057,3.0,2535.9,2534.7,2.2582]
[1724876943300,3.94401,2535.5,2534.9,3.94482]
[1724876943600,3.94358,2535.8,2535.2,3.94435]
[1724876943812,3.94404,2535.5,2534.7,2.2582]
[1724876943964,3.94393,2535.6,2534.8,4.49493]
[1724876944161,3.94409,2535.5,2534.9,3.94479]
[1724876944388,3.94393,2535.6,2534.9,7.88957]
[1724876944596,3.94399,2535.5,2535.0,0.55]
[1724876944909,3.94393,2535.6,2535.0,0.55]
[1724876945197,7.88729,2535.8,2535.2,3.94445]
[1724876945364,7.88663,2536.0,2535.3,4.57317208]
[1724876945562,3.94329,2536.0,2535.5,3.94391]
[1724876946699,3.9433,2536.0,2535.5,0.55]
[1724876946854,3.9432,2536.1,2535.5,0.55]
[1724876947060,3.0,2536.5,2535.6,3.9437]
[1724876947260,3.94347,2535.9,2535.7,0.55]
[1724876947509,3.94315,2536.1,2535.5,0.55]
[1724876947670,3.0,2536.7,2535.5,0.55]
[1724876947869,3.94269,2536.4,2535.5,0.62887478]
[1724876948074,7.35204799,2536.9,2535.7,7.88716]
[1724876948314,3.94311,2536.1,2535.8,0.55]
[1724876948506,3.9437,2535.7,2535.5,0.55]
[1724876949013,3.94383,2535.6,2535.5,0.55]
[1724876949161,3.94381,2535.7,2535.5,0.55]
[1724876949364,3.94381,2535.7,2535.0,10.29502]
[1724876949365,3.94405,2535.5,2535.0,6.35028]
[1724876949578,3.94455,2535.2,2535.0,2.4056]
[1724876949780,3.9439,2535.6,2535.0,3.94466]
[1724876949781,3.94392,2535.6,2535.0,3.94466]
[1724876950776,3.94403,2535.5,2535.0,3.94466]
[1724876950980,6.94362,2535.8,2535.1,0.55]
[1724876951179,3.94353,2535.8,2535.3,3.94427]
[1724876951379,3.94353,2535.8,2535.2,6.34995]
[1724876951380,3.94283,2536.3,2535.7,3.94358]
[1724876951619,2.73089799,2536.9,2535.2,6.35003]
[1724876951620,0.41019799,2536.9,2535.9,2.4056]
[1724876951792,0.41019799,2536.9,2536.8,3.94197]
[1724876951991,0.41019799,2536.9,2536.8,0.55]
[1724876952311,0.41020169,2537.7,2536.8,4.49195]
[1724876952520,0.41020169,2537.7,2537.3,3.94109]
[1724876952824,3.93986,2538.2,2537.4,0.62881152]
[1724876953008,3.94088,2537.5,2537.4,0.55]
[1724876953214,3.94088,2537.5,2537.2,0.55]
[1724876953387,3.94119,2537.3,2537.2,0.55]
[1724876953719,3.94088,2537.5,2537.2,0.55]
[1724876953923,3.94064,2537.7,2537.2,0.55]
[1724876954128,3.93997,2538.1,2537.1,0.55]
[1724876954440,3.94062,2537.7,2536.4,2.4753]
[1724876954579,3.94139,2537.2,2536.5,0.07885082]
[1724876954781,5.55033293,2538.0,2536.4,6.41777]
[1724876954782,3.94121,2537.3,2536.4,6.41777]
[1724876955129,0.39398,2538.1,2536.7,3.94206]
[1724876955130,3.94073,2537.6,2536.7,3.94206]
[1724876955327,3.94073,2537.6,2536.8,3.94194]
[1724876955483,3.0,2537.8,2536.4,2.4753]
[1724876955823,3.94011,2538.0,2536.8,3.94195]
[1724876956025,3.94011,2538.0,2536.9,4.96479728]
[1724876956197,3.93996,2538.1,2537.1,2.2731]
[1724876956405,3.93996,2538.1,2537.2,0.77731]
[1724876956582,3.93996,2538.1,2537.2,4.49129]
[1724876956779,3.93996,2538.1,2537.3,3.94118]
[1724876957028,3.93988,2538.2,2537.5,3.94086]
[1724876957238,3.94003,2538.1,2537.6,0.55]
[1724876957534,3.0,2538.0,2537.4,0.55]
[1724876957835,3.0,2538.0,2537.2,0.55]
[1724876957836,3.94028,2537.9,2537.2,0.55]
[1724876958038,3.0,2538.0,2537.2,0.55]
[1724876958241,3.0,2538.0,2537.3,3.94118]
[1724876958535,6.94014,2538.0,2537.4,0.55]
[1724876958752,0.41021088,2538.6,2537.4,0.55]
[1724876958903,3.93964,2538.3,2537.6,3.94071]
[1724876959228,3.93964,2538.3,2537.3,0.55]
[1724876959229,3.94012,2538.0,2537.7,0.55]
[1724876959437,3.94012,2538.0,2537.3,0.55]
[1724876959438,3.94021,2538.0,2537.3,0.55]
[1724876959602,3.94021,2538.0,2537.2,0.55]
[1724876960104,3.94021,2538.0,2537.2,4.49133]
[1724876960406,3.93986,2538.2,2537.4,3.94102]
[1724876960608,6.93997,2538.1,2537.5,0.55]
[1724876960869,1.17992909,2538.5,2537.2,0.55]
[1724876961036,3.94052,2537.8,2537.2,0.55]
[1724876962096,3.94052,2537.8,2536.7,2.3014]
[1724876962097,0.788074,2537.8,2536.7,2.3014]
[1724876962303,3.0,2538.1,2536.8,3.94184]
[1724876962304,3.94088,2537.5,2536.8,3.94184]
[1724876962526,3.0,2537.8,2536.7,2.3014]
[1724876962697,3.94165,2537.1,2536.3,6.24403]
[1724876962903,3.94193,2536.9,2536.3,2.3014]
[1724876963139,3.94292,2536.2,2535.8,2.3014]
[1724876963643,3.94278,2536.3,2535.8,2.3014]
[1724876963797,3.94278,2536.3,2535.5,3.94388]
[1724876963998,3.94317,2536.1,2535.4,3.94412]
[1724876964212,3.94317,2536.1,2535.3,6.935615]
[1724876964213,3.0,2536.2,2535.6,3.94382]
[1724876964451,3.0,2536.2,2535.5,3.94385]
[1724876964851,3.0,2536.2,2535.7,3.94366]
[1724876965109,3.94295,2536.2,2535.5,5.0318005]
[1724876965336,3.94295,2536.2,2535.5,3.94385]
[1724876965952,3.94317,2536.1,2535.3,2.3014]
[1724876966156,0.3,2536.3,2535.3,2.3014]
[1724876966314,7.88539,2536.4,2535.5,3.94394]
[1724876966514,3.0,2536.3,2535.5,3.94394]
[1724876966715,3.0,2536.3,2535.7,3.94365]
[1724876966955,3.0,2536.3,2535.5,4.02280835]
[1724876966956,3.94292,2536.2,2535.5,3.94388]
[1724876967154,3.0,2536.3,2535.8,3.94342]
[1724876967358,3.0,2536.3,2535.3,2.3014]
[1724876967359,3.0,2536.3,2535.9,4.49337]
[1724876967571,3.0,2536.5,2535.5,4.02274499]
[1724876967733,3.943,2536.2,2535.6,3.94376]
[1724876968055,3.94406,2535.5,2534.8,2.4615]
[1724876968260,3.94418,2535.4,2534.8,2.4615]
[1724876968815,3.94431,2535.3,2534.8,2.4615]
[1724876969016,3.94541,2534.6,2533.9,3.94636]
[1724876969317,3.94451,2535.2,2533.7,2.2835]
[1724876969522,7.88979,2535.0,2534.2,7.89198]
[1724876969729,6.94465,2535.1,2534.4,3.94558]
[1724876969960,3.0,2535.1,2534.4,3.94558]
[1724876970165,3.0,2535.1,2534.5,3.94553]
[1724876970454,2.3166,2535.8,2534.4,4.34809893]
[1724876970455,3.94488,2535.0,2534.4,4.34809893]
[1724876970665,3.94418,2535.4,2534.4,3.94565]
[1724876970957,3.0,2535.3,2534.6,6.21385]
[1724876971115,3.94402,2535.5,2534.8,3.94505]
[1724876971316,3.94388,2535.6,2535.0,3.94476]
[1724876971517,3.94359,2535.8,2535.1,4.49455]
[1724876971828,0.788687,2535.8,2535.1,0.55]
[1724876972047,3.94441,2535.3,2535.1,0.55]
[1724876972456,3.94407,2535.5,2534.6,6.2138]
[1724876972754,7.88885,2535.3,2534.6,7.229748]
[1724876972967,3.9444,2535.3,2534.6,6.2138]
[1724876973325,7.88819,2535.5,2534.6,6.2138]
[1724876973669,7.88819,2535.5,2534.8,3.94508]
[1724876973670,3.94419,2535.4,2534.8,3.94508]
[1724876973968,3.94419,2535.4,2534.6,6.2138]
[1724876973969,7.88876,2535.3,2534.9,0.55]
[1724876974172,3.94471,2535.1,2534.7,0.55]
[1724876974323,3.94471,2535.1,2534.4,3.94556]
[1724876974526,3.0,2535.2,2534.4,8.285836]
[1724876974868,3.94494,2534.9,2534.3,3.94574]
[1724876975564,6.94453,2535.2,2534.5,3.94554]
[1724876975723,6.94453,2535.2,2534.6,0.55]
[1724876976150,6.94453,2535.2,2534.6,4.49539]
[1724876976461,3.94462,2535.1,2534.6,0.55]
[1724876976925,3.94462,2535.1,2533.4,2.4203]
[1724876976926,4.63022301,2534.9,2533.4,2.4203]
[1724876977120,3.94532,2534.7,2533.4,2.4203]
[1724876977355,3.94591,2534.3,2533.2,3.9475]
[1724876977554,3.94676,2533.8,2533.2,3.94749]
[1724876977734,3.94642,2534.0,2533.4,3.94723]
[1724876977927,3.94642,2534.0,2533.3,3.94731]
[1724876978125,3.94642,2534.0,2533.2,3.94748]
[1724876978126,3.94642,2534.0,2533.4,3.94725]
[1724876978324,3.94648,2533.9,2533.4,3.94725]
[1724876978525,3.94642,2534.0,2533.2,3.94748]
[1724876978758,3.94672,2533.8,2533.2,3.94748]
[1724876978970,7.89287,2534.0,2533.2,3.94748]
[1724876979272,3.9458,2534.4,2533.7,3.94679]
[1724876979699,3.94589,2534.3,2533.7,7.89348]
[1724876979880,3.94589,2534.3,2533.7,3.94669]